Workbook

Sheet Tabelle1
B2: Lagerkennziffern | G2: Kalenderjahr | H2: 2017
B4: Lagerkosten je Stück in € | C4: 15
B5: Stückpreis in € | C5: 4
B6: Marktzinssatz in % | C6: 6
B8: Jahresanfangsbestand | C8: 50 | D8: Stück | E8: =Tabelle2!H6 -> 200 | F8: € | G8: Umschlagshäufigkeit | H8: =Tabelle2!E27 -> 13
B9: Jahresendbestand | C9: =Tabelle2!E19 -> 40 | D9: Stück | E9: =Tabelle2!H19 -> 160 | F9: € | G9: durchschnittliche Lagerdauer | H9: =Tabelle2!E28 -> 27.69230769
B10: Wareneinsatz | C10: =Tabelle2!E26 -> 400 | D10: Stück | E10: =Tabelle2!F26 -> 1600 | F10: € | G10: Lagerzinssatz | H10: =Tabelle2!E29 -> 0.4615384615
B11: durchschnittlicher Lagerbestand | C11: =Tabelle2!E25 -> 30.76923077 | D11: Stück | E11: =Tabelle2!F25 -> 123.0769231 | F11: € | G11: Lagerzinsen | H11: =Tabelle2!F31 -> 56.80473373
B12: durchschnittliche Lagerkosten | E12: =Tabelle2!F32 -> 461.5384615 | F12: € | G12: durchschnittliche Kapitalbindung | H12: =Tabelle2!F30 -> 123.0769231

Sheet Tabelle2
B2: Berechnungen
C4: Mengen | F4: Werte
C5: Zugänge | D5: Abgänge | E5: Bestand | F5: Zugänge | G5: Abgänge | H5: Bestand
B6: Anfangsbestand | E6: =Tabelle1!C8 -> 50 | H6: =E6*$E$21 -> 200
B7: Monate
B8: Januar | C8: 30 | D8: 40 | E8: =E6+C8-D8 -> 40 | F8: =C8*$E$21 -> 120 | G8: =D8*$E$21 -> 160 | H8: =H6+F8-G8 -> 160
B9: Februar | C9: 30 | D9: 50 | E9: =E8+C9-D9 -> 20 | F9: 120 | G9: 200 | H9: =H8+F9-G9 -> 80
B10: März | C10: 20 | D10: 10 | E10: =E9+C10-D10 -> 30 | F10: 80 | G10: 40 | H10: =H9+F10-G10 -> 120
B11: April | C11: 30 | D11: 40 | E11: 20 | F11: 120 | G11: 160 | H11: 80
B12: Mai | C12: 60 | D12: 50 | E12: 30 | F12: 240 | G12: 200 | H12: 120
B13: Juni | C13: 20 | D13: 10 | E13: 40 | F13: 80 | G13: 40 | H13: 160
B14: Juli | C14: 30 | D14: 40 | E14: 30 | F14: 120 | G14: 160 | H14: 120
B15: August | C15: 40 | D15: 50 | E15: 20 | F15: 160 | G15: 200 | H15: 80
B16: September | C16: 20 | D16: 10 | E16: 30 | F16: 80 | G16: 40 | H16: 120
B17: Oktober | C17: 30 | D17: 40 | E17: 20 | F17: 120 | G17: 160 | H17: 80
B18: November | C18: 60 | D18: 50 | E18: 30 | F18: 240 | G18: 200 | H18: 120
B19: Dezember | C19: 20 | D19: 10 | E19: 40 | F19: 80 | G19: 40 | H19: 160
B21: Preis in € | E21: =Tabelle1!C5 -> 4
B22: Lagerkosten je Stück in € | E22: =Tabelle1!C4 -> 15
B23: Marktzinssatz in % | E23: =Tabelle1!C6 -> 6
B25: Durchschnittlicher Lagerbestand | D25: Stück | E25: =SUM(E6:E19)/13 -> 30.76923077 | F25: =SUM(H6:H19)/13 -> 123.0769231 | G25: €
B26: Wareneinsatz | D26: Stück | E26: =E6+SUM(C8:C19)-E19 -> 400 | F26: =H6+SUM(F8:F19)-H19 -> 1600 | G26: €
B27: Umschlagshäufigkeit | E27: =E26/E25 -> 13
B28: Durchschnittliche Lagerdauer | D28: Tage | E28: =360/E27 -> 27.69230769
B29: Lagerzinssatz | E29: =E28*E23/360 -> 0.4615384615
B30: durchschnittliche Kapitalbindung | F30: =E25*E21 -> 123.0769231 | G30: €
B31: Lagerzinsen | F31: =F30*E29 -> 56.80473373 | G31: €
B32: durchschnittliche Lagerkosten | F32: =E25*E22 -> 461.5384615 | G32: €

Sheet Tabelle3
